Cogmind - Beta 11 @@@ ROGUE MODE // 2022.03.25 @ 19:25:25 Player: Iceblade02 Result: Self-destructed Performance ------------- Evolutions (1) 500 Regions Visited (4) 800 Robots Destroyed (15) 75 Value Destroyed (256) 256 Prototype IDs (0) 0 Alien Tech Used (0) 0 Bonus (181) 181 TOTAL SCORE: 1812 Bonus ------- High Alert Combat Kills 4 Follower Combat Kills 196 Friendly Fire -19 Cogmind --------- Core Integrity 350/400 Matter 193/300 Energy 100/100 System Corruption 0% Temperature Cool (0) Movement Core (300) Ox5 Location -9/Storage Parts ------- > --- POWER (1) -------- (None) > --- PROPULSION (3) --- (None) > --- UTILITY (3) ------ Medium Storage Unit > --- WEAPON (2) ------- Light Cannon Light Cannon > --- INVENTORY (10) --- Light Ion Engine Heat Sink Small Storage Unit Large Storage Unit Structural Scanner Experimental Sensor Array Beam Rifle Beam Rifle Mining Laser Peak State ------------ > --- POWER ------------ Light Ion Engine > --- PROPULSION ------- Wheel Compact Wheel > --- UTILITY ---------- Small Storage Unit Medium Armor Plating > --- WEAPON ----------- Light Cannon Light Cannon > --- INVENTORY -------- Light Ion Engine Aluminum Leg Medium Storage Unit Large Storage Unit Beam Rifle Beam Rifle Assault Rifle Mining Laser [Rating: 9] Favorites ----------- Power Light Ion Engine Engine Light Ion Engine Propulsion Compact Wheel Wheel Compact Wheel Utility Medium Armor Plating Storage Small Storage Unit Protection Medium Armor Plating Weapon Light Cannon Ballistic Gun Assault Rifle Ballistic Cannon Light Cannon Build | -11 -10 -10 -9 -9 ------- Run | Scr Mat Min Mat Sto Slots Evolved 2 | . . . 2 . Power . | . . . . . Propulsion 1 | . . . 1 . Utility 1 | . . . 1 . Weapon . | . . . . . Parts Attached 15 | 6 3 3 . 3 Power 1 | 1 . . . . Engine 1 | 1 . . . . Core . | . . . . . Reactor . | . . . . . Propulsion 4 | 2 . 1 . 1 Treads . | . . . . . Leg . | . . . . . Wheel 4 | 2 . 1 . 1 Hover . | . . . . . Flight . | . . . . . Utility 5 | 1 1 2 . 1 Device . | . . . . . Storage 2 | 1 . 1 . . Processor . | . . . . . Hackware . | . . . . . Protection 3 | . 1 1 . 1 Artifact . | . . . . . Weapon 5 | 2 2 . . 1 Energy Gun . | . . . . . Energy Cannon . | . . . . . Ballistic Gun 2 | 2 . . . . Ballistic Cannon 3 | . 2 . . 1 Launcher . | . . . . . Special Weapon . | . . . . . Impact Weapon . | . . . . . Slashing Weapon . | . . . . . Piercing Weapon . | . . . . . Special Melee Weapon . | . . . . . Unidentified Prototypes . | . . . . . Parts Lost 4 | . . . . 4 Power 1 | . . . . 1 Propulsion 2 | . . . . 2 Utility 1 | . . . . 1 Weapon . | . . . . . Highest Loss Streak 4 | . . . . 4 To Critical Strikes . | . . . . . Average Slot Usage (%) 92 | . 96 100 77 64 Engine 13 | . 14 14 11 7 Wheel 26 | . 28 28 22 18 Storage 13 | . 14 14 11 11 Protection 12 | . 10 14 11 7 Ballistic Cannon 25 | . 24 28 22 18 Naked Turns . | . . . . . Heaviest Build 26 | 11 21 26 26 26 Greatest Support 26 | 26 26 26 26 26 Greatest Overweight (x) 1 | . . . . 1 Average Overweight (x) . | . . . . . Largest Inventory Capacity 10 | 8 8 10 10 10 Average Capacity 8 | 7 8 8 10 10 Most Carried 10 | 4 8 9 9 10 Average Carried 7 | 2 7 8 9 9 Final Capacity 10 | 8 8 10 10 10 Final Carried 9 | 4 8 9 9 9 Class Distribution -------------------- 100% | Mutant Dominant Class ---------------- Mutant | -10/Materials Mutant | -10/Mines Mutant | -9/Materials Mutant | -9/Storage Resources | -11 -10 -10 -9 -9 ----------- Run | Scr Mat Min Mat Sto Matter Collected 570 | 228 42 300 . . Remotely . | . . . . . Salvage Created 257 | . 35 176 . 46 Parts 23 | . 5 17 . 1 Haulers Intercepted . | . . . . . Recyclers Shooed . | . . . . . Parts Field Recycled . | . . . . . Retrieved Matter . | . . . . . Parts Self-Destructed . | . . . . . Prevented . | . . . . . Kills | -11 -10 -10 -9 -9 ------- Run | Scr Mat Min Mat Sto Combat Hostiles Destroyed 13 | . . 11 . 2 Cannons 13 | . . 11 . 2 Classes Destroyed 5 | . 2 2 . 1 Worker 1 | . 1 . . . Builder 1 | . 1 . . . Swarmer 9 | . . 9 . . Grunt 3 | . . 2 . 1 Sentry 1 | . . . . 1 Best Kill Streak 4 | . 2 4 . 2 Combat Bots Only 4 | . . 4 . 2 Max Kills in Single Turn 1 | . 1 1 . 1 Gunslinging . | . . . . . Exploded . | . . . . . Melee . | . . . . . Uniques/NPCs Destroyed . | . . . . . Combat | -11 -10 -10 -9 -9 -------- Run | Scr Mat Min Mat Sto Damage Taken 658 | . 38 338 4 278 Core 90 | . 10 30 . 50 Absorbed by Shields . | . . . . . Core Remaining (%) 92 | 100 . 84 . . Volleys Fired 45 | . 6 26 3 10 Largest 2 | . 2 2 2 2 Hottest 70 | . 70 70 70 70 Shots Fired 88 | . 12 52 6 18 Gun . | . . . . . Cannon 88 | . 12 52 6 18 Launcher . | . . . . . Special . | . . . . . Kinetic 88 | . 12 52 6 18 Thermal . | . . . . . Explosive . | . . . . . Electromagnetic . | . . . . . Robot Hit Streak 6 | . 2 4 1 6 Robot Miss Streak 7 | . 3 7 2 3 Penetration Max . | . . . . . Secondary Targets . | . . . . . Shots Hit Robots 37 | . 4 19 2 12 Core Hits 17 | . 2 12 . 3 Critical Kills . | . . . . . Critical Parts Destroyed . | . . . . . Critical Strikes . | . . . . . Melee Attacks . | . . . . . Impact . | . . . . . Slashing . | . . . . . Piercing . | . . . . . Sneak Attacks . | . . . . . Combat Hostiles . | . . . . . Follow-up Attacks . | . . . . . Damage Inflicted 683 | . 65 364 44 210 Guns . | . . . . . Cannons 675 | . 65 364 36 210 Explosions . | . . . . . Melee . | . . . . . Ramming 8 | . . . 8 . Kinetic 675 | . 65 364 36 210 Thermal . | . . . . . Explosive . | . . . . . Electromagnetic . | . . . . . Impact . | . . . . . Slashing . | . . . . . Piercing . | . . . . . Highest Corruption . | . . . . . Average Corruption . | . . . . . Corruption Purged . | . . . . . Corruption Blocked . | . . . . . Overload Shots . | . . . . . Overflow Damage 5 | . . . . 5 Projectiles 5 | . . . . 5 Explosions . | . . . . . Melee . | . . . . . Knockbacks 8 | . . 5 1 2 Impact . | . . . . . Kinetic 6 | . . 3 1 2 Secondary 2 | . . 2 . . Self-Inflicted Damage 4 | . . . 4 . Shots . | . . . . . Rammed 1 | . . . 1 . Targets Rammed 1 | . . . 1 . Kicked . | . . . . . Crushed . | . . . . . Highest Temperature 161 | . 54 161 9 35 Average Temperature 49 | . 18 67 6 20 Received Heat Transfer 159 | . 6 21 . 132 Siege Activations . | . . . . . Robots Corrupted . | . . . . . Combat Hostiles . | . . . . . Parts Fried . | . . . . . Impact Corruptions 1 | . . 1 . . Robots Melted . | . . . . . Combat Hostiles . | . . . . . Parts Melted . | . . . . . Heat Transferred . | . . . . . Parts Sabotaged . | . . . . . Parts Stolen . | . . . . . Parts Stripped . | . . . . . Power Chain Reactions . | . . . . . Missiles Intercepted . | . . . . . Alert | -11 -10 -10 -9 -9 ------- Run | Scr Mat Min Mat Sto Peak Influence 448 | . 40 448 188 187 Initial 96 | . . 15 96 79 Average 182 | . 25 294 136 115 Maximum Alert Level 2 | . . 2 . . Low Security (%) 63 | 100 100 28 100 100 Level 1 22 | . . 44 . . Level 2 13 | . . 27 . . Level 3 . | . . . . . Level 4 . | . . . . . Level 5 . | . . . . . High Security . | . . . . . Max Security . | . . . . . Squads Dispatched 3 | . 1 . 1 1 Investigation 1 | . 1 . . . Extermination . | . . . . . Reinforcement 1 | . . . 1 . Assault . | . . . . . Garrison 1 | . . . . 1 Intercept . | . . . . . Searches Triggered . | . . . . . Construction Impeded . | . . . . . Haulers Reinforced . | . . . . . Active Scanning Responses . | . . . . . Cargo Convoy Interrupts . | . . . . . Stealth | -11 -10 -10 -9 -9 --------- Run | Scr Mat Min Mat Sto Distress Signals 1 | . . . . 1 Communications Jammed . | . . . . . Distress Signals . | . . . . . Times Spotted 34 | . 7 18 2 7 Peak Tracking Total 6 | . 6 5 2 6 Tactical Retreats 1 | . . 1 . . Traps | -11 -10 -10 -9 -9 ------- Run | Scr Mat Min Mat Sto Traps Triggered 3 | . 1 . . 2 Indirectly . | . . . . . Trap Hack Attempts . | . . . . . Triggered . | . . . . . Disarmed . | . . . . . Reprogrammed . | . . . . . Reused . | . . . . . Traps Extracted . | . . . . . Installed . | . . . . . Triggered . | . . . . . Machines | -11 -10 -10 -9 -9 ---------- Run | Scr Mat Min Mat Sto Machines Disabled 1 | . 1 . . . Max in Single Turn 1 | . 1 . . . Machines Sabotaged . | . . . . . Garrisons Compromised . | . . . . . Overloaded Fab Kills . | . . . . . Hacking | -11 -10 -10 -9 -9 --------- Run | Scr Mat Min Mat Sto Machines Accessed 2 | . 1 . . 1 Terminals 1 | . 1 . . . Fabricators . | . . . . . Repair Stations . | . . . . . Recycling Units . | . . . . . Scanalyzers . | . . . . . Garrison Access 1 | . . . . 1 Total Hacks 4 | . 3 . . 1 Successful 2 | . 2 . . . Failed 2 | . 1 . . 1 Catastrophic 1 | . . . . 1 Database Lockouts . | . . . . . Manual 1 | . 1 . . . Terminals 3 | . 3 . . . Fabricators . | . . . . . Repair Stations . | . . . . . Recycling Units . | . . . . . Scanalyzers . | . . . . . Garrison Access 1 | . . . . 1 Terminal Hacks 1 | . 1 . . . Branch Access Points 1 | . 1 . . . Fabricator Hacks . | . . . . . Repair Station Hacks . | . . . . . Recycling Unit Hacks . | . . . . . Scanalyzer . | . . . . . Garrison Access Hacks . | . . . . . Unauthorized Hacks 1 | . 1 . . . Terminals 1 | . 1 . . . Botnet 1 | . 1 . . . Fabricators . | . . . . . Repair Stations . | . . . . . Recycling Units . | . . . . . Scanalyzers . | . . . . . Garrison Access . | . . . . . Data Cores Recovered . | . . . . . Used . | . . . . . Hacking Detections 2 | . 1 . . 1 Full Trace Events . | . . . . . Feedback Events . | . . . . . Feedback Blocked . | . . . . . Robot Schematics Acquired . | . . . . . Robots Built . | . . . . . Authchips . | . . . . . Time . | . . . . . Total Robot Build Rating . | . . . . . Part Schematics Acquired . | . . . . . Parts Built . | . . . . . Authchips . | . . . . . Time . | . . . . . Total Part Build Rating . | . . . . . Parts Repaired . | . . . . . Time . | . . . . . Parts Recycled . | . . . . . Recycled Matter . | . . . . . Retrieved Matter . | . . . . . Retrieved Components . | . . . . . Parts Scanalyzed . | . . . . . Part Schematics Acquired . | . . . . . Parts Damaged . | . . . . . Bothacking | -11 -10 -10 -9 -9 ------------ Run | Scr Mat Min Mat Sto Used RIF Installer . | . . . . . Robots Hacked . | . . . . . Non-combat . | . . . . . Combat . | . . . . . Robot Hacks Applied . | . . . . . Relay Couplers Released . | . . . . . Fabnet Peak Effective % . | . . . . . Robots Rewired . | . . . . . Allies Hacked . | . . . . . Hacks Repelled . | . . . . . Allies | -11 -10 -10 -9 -9 -------- Run | Scr Mat Min Mat Sto Total Allies 5 | . . 5 . . Largest Group 4 | . . 4 4 3 Highest-Rated Group 69 | . . 69 69 61 Highest-Rated Ally 31 | . . 31 31 31 Total Orders . | . . . . . Ally Attacks 77 | . . 18 28 31 Total Damage 768 | . . 124 329 315 Kills 10 | . . 4 3 3 Allies Corrupted . | . . . . . Allies Melted . | . . . . . Intel | -11 -10 -10 -9 -9 ------- Run | Scr Mat Min Mat Sto Robot Analysis Total . | . . . . . Derelict Logs Recovered 1 | . . 1 . . Drone Launches . | . . . . . Drone Recoveries . | . . . . . Exploration | -11 -10 -10 -9 -9 ------------- Run | Scr Mat Min Mat Sto Turns Passed 866 | 60 175 438 117 76 Spaces Moved 711 | 53 155 381 75 47 Core 1 | 1 . . . . Treads . | . . . . . Legs . | . . . . . Wheels 710 | 52 155 381 75 47 Hover . | . . . . . Flight . | . . . . . Fastest Speed 50 | 50 90 90 90 90 Average Speed 90 | 89 90 90 90 90 Slowest Speed 115 | 100 90 90 90 115 Overloaded Moves . | . . . . . Propulsion Burnouts . | . . . . . Robots Hopped . | . . . . . Cave-ins Triggered . | . . . . . Exploration Rate (%) 25 | 4 31 61 13 18 Regions Visited 4 Branch Regions 2 Pre-discovered Areas . | . . . . . Known Exits Taken 1 | . 1 . . . Unknown Exits Taken 3 | 1 . 1 1 . Scrap Searched 1 | . . 1 . . Spaces Dug . | . . . . . Terrain Destroyed . | . . . . . Melee . | . . . . . Projectile . | . . . . . AOE . | . . . . . Terrain Rammed . | . . . . . Walls Destroyed . | . . . . . Machines Disabled . | . . . . . Actions | -11 -10 -10 -9 -9 --------- Run | Scr Mat Min Mat Sto Total 844 | 62 180 423 118 61 Wait 51 | . 2 9 40 . Move 707 | 52 154 380 74 47 Hop . | . . . . . Pick Up 16 | 4 8 3 . 1 Fast Attach 11 | 6 3 . . 2 Attach 1 | . . . . 1 Detach 1 | . 1 . . . Swap 3 | . . 3 . . Drop 8 | . 6 2 . . Fire 45 | . 6 26 3 10 Melee . | . . . . . Ram 1 | . . . 1 . Kick . | . . . . . Crush . | . . . . . Escape Stasis . | . . . . . Rewire . | . . . . . Trap . | . . . . . Miscellaneous . | . . . . . Route ------- -11/Scrapyard -10/Materials (discovered 3 exits: [*Mat] / *Min x2) -10/Mines (discovered 2 exits: [*Mat x2]) -9/Materials (discovered 3 exits: Mat / Min / *Sto) -9/Storage History --------- Turn | Location | Event 13 | -11/Scrapyard | Discovered new exit (range 16) 61 | -11/Scrapyard | Entered Materials 89 | -10/Materials | Identified exit to Mines 140 | -10/Materials | Discovered new exit (range 16) 236 | -10/Materials | Entered Mines 239 | -10/Mines | Assisted by bots powering up and referring to "LRC-V3" 321 | -10/Mines | Build established: Mutant 350 | -10/Mines | Learned 2 Materials zone layouts 350 | -10/Mines | Discovered new exit (range 11) 556 | -10/Mines | Found a damaged Exp. Sensor Array with a note attached 560 | -10/Mines | Found Prototype Device 650 | -10/Mines | Discovered new exit (range 15) 674 | -10/Mines | Entered Materials 674 | -9/Materials | Accompanied by 4 allies 674 | -9/Materials | Evolved 2 slots: Propulsion x1, Utility x1 675 | -9/Materials | Identified exit to Materials 675 | -9/Materials | Identified exit to Mines 679 | -9/Materials | Led the pair of lost Derelicts to an unsafe place 755 | -9/Materials | Discovered new exit (range 10) 791 | -9/Materials | Entered Storage 791 | -9/Storage | Accompanied by 3 allies 831 | -9/Storage | Garrison activated, responded to threat 867 | -9/Storage | Self-destructed Last Messages --------------- 00834_ Acquired Wheel. 00835_ G-34 Mercenary destroyed. 00836_ K-01 Serf collects debris. 00838_ Connecting with Garrison Access... 00838_ Current location identified: Storage 00845_ Med. Armor Plating destroyed. 00849_ Lgt. Ion Engine destroyed. 00853_ Wheel destroyed. 00855_ Y-45 Defender destroyed. 00858_ Destroyed Heat Sink. 00859_ Com. Wheel destroyed. 00861_ G-34 Mercenary knocked back. 00863_ K-01 Serf collects debris. 00864_ G-34 Mercenary heat spikes uncontrollably. 00864_ G-34 Mercenary destroyed. 00865_ G-34 Mercenary heat short circuits Ion Engine. 00865_ G-34 Mercenary overheating. 00866_ G-34 Mercenary heat spikes uncontrollably. 00866_ G-34 Mercenary overheating. 00867_ K-01 Serf collects debris. Map ----- +----------------------------------------------------+ | | | | | | | | | | | | | | | | | | | | | | | | | | | | | ?????????????????????????????????????????????????? | | ?????????????????????????????????????????????????? | | ?????????????????????????????????????????????????? | | ????????????????????????? #####???????????######## | | ?????????????????????# ? #???????????# | | ?????????????????????# """"" #???????????# | | ?????????????????????# """""% #???????????# | | ?????????????????????# """""%%#???????????# | | ?????????????????????# %%#???????????# | | ?????????????????????# " " !% #???????????# | | ?????????????????????# "G" #???????????# | | ?????????????????????# "@ #???????????# | | ?????????????????????# % #???????????# ? | | ???????????????????#######;################+##+### | | ???????????????????# | | ???????????????????# | | ???????????????????# !!! "" | | ???????????????????# !!! Y" ###+###### | | ???????????????????# """ g! %"" #? ????? | | ???????????????????# """ ! #?"""????? | | ???????????????????# """ k # """ ???? | | ???????????????????+ =% # """ ???? | | ???????????????????# # ??? | | ???????????????????# ? # """ ??? | | ???????????????????#? # """ ?? | | ????????????????????? ############ #????? ?? | | ????????????????????? ???????????# #????? ? | | ????????????????????? ????????????# #??????##? | | ???????????????????????????????????# ?????????? | | ???????????????????????????????????? ?????????? | | ?????????????????????????????????????????????????? | | ?????????????????????????????????????????????????? | | ?????????????????????????????????????????????????? | | ?????????????????????????????????????????????????? | | ?????????????????????????????????????????????????? | | ?????????????????????????????????????????????????? | +----------------------------------------------------+ Best States ------------- Heat Dissipation 28 Energy Generation 10 Energy Capacity 125 Matter Stores 300 Matter Capacity 300 Sight Range 16 Terrain Scan Density 10 Armor Coverage 225 Evasion (%) 42 Item Schematics ----------------- None Robot Schematics ------------------ None Fabricated ------------ Nothing Alien Tech Used ----------------- None Achievements -------------- None Challenges ------------ None Game ------ Seed FortressMetafiberStorage Manual? 0 Play Time 00:12:22 Cumulative 17.7 hours Start 2022.03.25 @ 18:44:49 End 2022.03.25 @ 19:25:25 Sessions 1 Manual Loads 0 Difficulty Rogue Special Mode None Game No. 12 Rogue 12 Adventurer 0 Explorer 0 Win Type - Total 0 Types 0/0/0/0/0/0/0/0/0 Lore% 18 Gallery% 22 Achievement% 25 Wizard Run 0 Options --------- ASCII 0 Keyboard 0 Movement Arrows Keybinds 0 Fullscreen 1 Font 24/Smallcaps Map View 76x50 Tactical HUD 1 Map Filters NONE Filters NONE Steam 1 RUN: 330d349b-f5a4-4344-991d-621a921569a4